fUSD/lending_fUSD_20260221
["ID","MTS","AMOUNT","RATE_DAILY","PERIOD"]
[406232691,1771644640399,-1545.63909642,0.000179,2]
[406232692,1771644640408,-153.464312,0.000179,2]
[406232693,1771644640418,-560.559874,0.000179,2]
[406232694,1771644640427,-560.559874,0.000179,2]
[406232695,1771644640436,-211.424329,0.000179,2]
[406232696,1771644640445,-560.559874,0.000179,2]
[406232697,1771644640454,-211.424329,0.000179,2]
[406232698,1771644640464,-560.559874,0.000179,2]
[406232699,1771644640473,-211.424329,0.000179,2]
[406232700,1771644640482,-211.424329,0.000179,2]
[406232701,1771644640491,-1997.0,0.00017912,2]
[406232702,1771644640500,-1743.9005063,0.0001797,2]
[406232703,1771644640509,-500.0,0.00017973,2]
[406232704,1771644640518,-500.0,0.00017973,2]
[406232705,1771644640528,-500.0,0.00017973,2]
[406232706,1771644640537,-500.0,0.00017973,2]
[406232707,1771644640546,-500.0,0.00017973,2]
[406232708,1771644640556,-500.0,0.00017973,2]
[406232709,1771644640565,-500.0,0.00017973,2]
[406232710,1771644640575,-568.38984139,0.00017973,2]
[406232711,1771644640587,-500.0,0.00017973,2]
[406232712,1771644640597,-500.0,0.00017973,2]
[406232713,1771644640607,-500.0,0.00017973,2]
[406232714,1771644640622,-500.0,0.00017973,2]
[406232715,1771644640645,-500.0,0.00017973,2]
[406232716,1771644640665,-500.0,0.00017973,2]
[406232717,1771644640679,-500.0,0.00017973,2]
[406232718,1771644640688,-500.0,0.00017973,2]
[406232719,1771644640696,-500.0,0.00017973,2]
[406232720,1771644640705,-500.0,0.00017973,2]
[406232721,1771644640714,-500.62983422,0.00017973,2]
[406232722,1771644640723,-500.0,0.00017973,2]
[406232723,1771644640732,-500.0,0.00017973,2]
[406232724,1771644640741,-500.0,0.00017973,2]
[406232725,1771644640754,-500.0,0.00017973,2]
[406232726,1771644640763,-500.0,0.00017973,2]
[406232727,1771644640772,-342.76331381,0.00017973,2]
[406232728,1771644640781,-619.14973919,0.00017973,2]
[406232729,1771644640793,-500.0,0.00017973,2]
[406232730,1771644640802,-500.0,0.00017973,2]
[406232731,1771644640811,-500.50855099,0.00017973,2]
[406232732,1771644640819,-500.0,0.00017973,2]
[406232733,1771644640828,-500.0,0.00017973,2]
[406232734,1771644640839,-533.24438323,0.00017973,2]
[406232735,1771644640849,-500.0,0.00017973,2]
[406232736,1771644640859,-502.50033053,0.00017973,2]
[406232737,1771644640868,-500.0,0.00017973,2]
[406232738,1771644640877,-500.0,0.00017973,2]
[406232739,1771644640886,-500.0,0.00017973,2]
[406232740,1771644640896,-500.0,0.00017973,2]
[406232741,1771644640906,-500.61890961,0.00017973,2]
[406232742,1771644640915,-500.39813374,0.00017973,2]
[406232743,1771644640924,-500.0,0.00017973,2]
[406232744,1771644640933,-500.0,0.00017973,2]
[406232745,1771644640942,-500.0,0.00017973,2]
[406232746,1771644640951,-500.0,0.00017973,2]
[406232747,1771644640961,-500.98392686,0.00017973,2]
[406232748,1771644640970,-1222.0937499,0.0001799,2]
[406232749,1771644640981,-151.16721438,0.00017999,2]
[406232750,1771644640991,-500.0,0.00017999,2]
[406232751,1771644641001,-500.0,0.00017999,2]
[406232752,1771644641010,-500.0,0.00017999,2]
[406232753,1771644641019,-192.94,0.00017999,2]
[406232754,1771644641028,-577.4,0.00017999,2]
[406232755,1771644641038,-577.4,0.00017999,2]
[406232756,1771644641047,-577.4,0.00017999,2]
[406232757,1771644641057,-577.4,0.00017999,2]
[406232758,1771644641065,-577.4,0.00017999,2]
[406232759,1771644641074,-577.4,0.00017999,2]
[406232760,1771644641084,-577.4,0.00017999,2]
[406232761,1771644641093,-577.4,0.00017999,2]
[406232762,1771644641102,-296.5196054,0.00017999,2]
[406232763,1771644641111,-221814.384348,0.00018,2]
[406232764,1771644641121,-200.0,0.00018,2]
[406232765,1771644641130,-3190.9793357,0.00018,2]
[406232766,1771644641139,-611994.348653,0.00018,2]
[406232767,1771644641149,-484.69006529,0.00018,2]
[406232768,1771644641158,-151.0,0.00018,2]
[406232769,1771644641167,-151.0,0.00018,2]
[406232770,1771644641176,-151.0,0.00018,2]
[406232771,1771644641185,-151.0,0.00018,2]
[406232772,1771644641195,-778153.97575091,0.00018,2]
[406232773,1771644641230,-169.04961685,0.00016098,2]
[406232774,1771644641239,-500.82921615,0.00018,2]
[406232775,1771644641251,-513.92439638,0.00018,2]
[406232776,1771644641261,-3142.31386888,0.00018,2]
[406232777,1771644641272,-9502.95454108,0.00018,2]
[406232778,1771644641283,-1118.06652458,0.00018,2]
[406232779,1771644641295,-862.91952571,0.00018,2]
[406232780,1771644641306,-1810.82933398,0.00018,2]
[406232781,1771644641318,-298.51436949,0.00018,2]
[406232782,1771644641329,-689.72524371,0.00018,2]
[406232783,1771644641339,-450.34283817,0.00018,2]
[406232786,1771644642930,-673.49203585,0.00018,2]
[406232787,1771644642985,-9935.48238191,0.00018,2]
[406232788,1771644642996,-5080.71237673,0.00018,2]
[406232789,1771644643007,-596.2936,0.00018,2]
[406232790,1771644643018,-2880.04780582,0.00018,2]
[406232791,1771644643039,-756.36239246,0.00018,2]
[406232792,1771644643092,-189139.41754761,0.00018,2]
[406232795,1771644645520,-21454.90245532,0.00018,2]
[406232796,1771644645531,-3110.30451518,0.00018,2]
[406232797,1771644645624,-9202.07706606,0.00018,2]
[406232798,1771644645680,-1384.00984328,0.00018,2]
[406232799,1771644645691,-432.60481996,0.00018,2]
[406232800,1771644645702,-812.18755796,0.00018,2]
[406232801,1771644645734,-2085.65510674,0.00018,2]
[406232824,1771644823824,-315.0,0.00015998,2]
[406232825,1771644823856,-481.3638,0.00015999,2]
[406232826,1771644823893,-1592.7276,0.00015999,2]
[406232827,1771644823925,-3185.4552,0.00015999,2]
[406232828,1771644823955,-3629.0996,0.00015999,2]
[406232829,1771644823982,-220.15495742,0.00015999,2]
[406232830,1771644824008,-62.19417156,0.00015999,2]
[406232831,1771644824089,-2177.11254204,0.00015999,2]
[406232832,1771644824098,-256.28529032,0.00015999,2]
[406232833,1771644824108,-173.10789294,0.00015999,2]
[406232834,1771644824119,-300.0,0.00016097,2]
[406232835,1771644824128,-500.0,0.00016098,2]
[406232836,1771644824138,-184.06,0.00016098,2]
[406232837,1771644824147,-4534.36754572,0.00016098,2]
[406232838,1771644824170,-6814.5548,0.00016098,2]
[406232839,1771644824183,-3629.0996,0.00016098,2]
[406232840,1771644824201,-220.15495742,0.00016098,2]
[406232841,1771644824216,-2239.3067136,0.00016098,2]
[406232842,1771644824238,-10000.01,0.00016098,2]
[406232843,1771644826186,-10000.01,0.00016098,2]
[406232844,1771644826304,-883.0908054,0.00016098,2]
[406232845,1771644826330,-8233.8283892,0.00016098,2]
[406232846,1771644909213,-1200.0,0.00015998,2]
[406232847,1771644909242,-239.09792498,0.00015999,2]
[406232848,1771644909268,-173.10789294,0.00015999,2]
[406232849,1771644909294,-220.15495742,0.00015999,2]
[406232850,1771644909319,-1492.8711424,0.00015999,2]
[406232851,1771644909345,-517.0,0.00016,2]
[406232852,1771644909372,-300.0,0.00016097,2]
[406232853,1771644909398,-500.0,0.00016098,2]
[406232854,1771644909425,-215.54616452,0.00016098,2]
[406232855,1771644909561,-284.45383548,0.00016098,2]
[406232856,1771644911894,-505.61228041,0.00016098,2]
[406232857,1771644911923,-505.36393545,0.00016098,2]
[406232858,1771644911953,-500.0,0.00016098,2]
[406232859,1771644923403,170.85686022,0.00015999,2]
[406232860,1771644941327,-500.0,0.00016098,2]
[406232861,1771644941354,-500.0,0.00016098,2]
[406232862,1771644941384,-500.0,0.00016098,2]
[406232863,1771644941421,-500.0,0.00016098,2]
[406232864,1771644941448,-500.0,0.00016098,2]
[406232865,1771644941476,-500.0,0.00016098,2]
[406232866,1771644941504,-500.0,0.00016098,2]
[406232867,1771644941532,-500.0,0.00016098,2]
[406232868,1771644941560,-500.0,0.00016098,2]
[406232869,1771644941588,-500.0,0.00016098,2]
[406232870,1771644947228,-500.0,0.00016098,2]
[406232871,1771644947256,-500.0,0.00016098,2]
[406232872,1771644947283,-223.02771451,0.00016098,2]
[406232873,1771644947312,-776.62150607,0.00016098,5]
[406232874,1771644947923,1421.3107834,0.00015999,2]
[406232875,1771644953553,500.0,0.00015997,2]
[406232876,1771644955458,500.0,0.00016098,2]
[406232877,1771644955685,500.0,0.00016098,2]
[406232878,1771644955939,500.0,0.00016098,2]
[406232879,1771644956168,500.0,0.00016098,2]
[406232880,1771644956416,627.47385881,0.00016098,2]
[406232881,1771644973545,-4849.4197,0.00015999,2]
[406232882,1771644973787,-5581.54909757,0.00015999,2]
[406232883,1771644976403,-10000.01,0.00015999,2]
[406232884,1771644976669,-10000.01,0.00015999,2]
[406232885,1771645018236,150.0,0.00015589,2]
[406232886,1771645059774,2708.4,0.00013379,2]
[406232887,1771645119930,-200.0,0.00015776,2]
[406232888,1771645119976,-300.0,0.00015898,2]
[406232889,1771645120071,-6141.61,0.00015899,2]
[406232890,1771645120096,-10000.01,0.00015899,2]
[406232891,1771645120568,-10000.01,0.00015899,2]
[406232892,1771645123750,-10000.01,0.00015899,2]
[406232893,1771645124201,-1187.68101405,0.00015899,2]
[406232894,1771645124229,-231.70033567,0.00015899,2]
[406232895,1771645124256,-212.22497024,0.00015899,2]
[406232896,1771645124313,-6736.79736008,0.00015988,2]
[406232897,1771645190528,-169.92,0.00015629,2]
[406232898,1771645190555,-2565.47975118,0.00015899,2]
[406232899,1771645190610,-4529.21049764,0.00015899,2]
[406232900,1771645193297,-10000.01,0.00015899,2]
[406232901,1771645199355,-1086.0,9e-05,2]
[406232902,1771645199390,-7828.01,0.00015899,2]
[406232903,1771645414985,1895.68,0.00015393,2]
[406232904,1771645469998,2779.12,0.00015262,2]
[406232905,1771645522778,156.67,0.00012965,2]
[406232906,1771645522971,156.67,0.00013423,2]
[406232907,1771645523182,156.67,0.00013881,2]
[406232908,1771645526301,156.67,0.00014338,2]
[406232909,1771645526727,156.67,0.00014796,2]
[406232910,1771645527133,156.67,0.00015253,2]
[406232911,1771645535939,152.82,0.00015253,2]
[406232912,1771645595278,6128.05,0.00015,2]
[406232913,1771645595304,2871.95,0.00015,2]
[406232914,1771645612398,7128.06,0.00015,2]
[406232915,1771645612422,10000.01,0.00015,2]
[406232916,1771645612445,871.93,0.00015,2]
[406232917,1771645648587,9128.08,0.00015,2]
[406232918,1771645740147,-191.63,0.00012009,2]
[406232919,1771645740175,-300.0,0.00013999,2]
[406232920,1771645740206,-300.0,0.00013999,2]
[406232921,1771645743190,-6521.07,0.00014,2]
[406232922,1771645746104,-10000.01,0.00014,2]
[406232923,1771645749096,-10000.01,0.00014,2]
[406232924,1771645763133,-3053.16041044,0.00014,2]
[406232925,1771645831766,-300.0,0.00013999,2]
[406232926,1771645831776,-300.0,0.00013999,2]
[406232927,1771645831786,-300.0,0.00013999,2]
[406232928,1771645831795,-70.48795508,0.00013999,2]
[406232937,1771645837820,-1129.51204492,0.00013999,2]
[406232938,1771645837831,-265.0,0.00013999,2]
[406232939,1771645837840,-577.51903928,0.00013999,2]
[406232940,1771645837850,-500.0,0.00013999,2]
[406232941,1771645837860,-289.45743027,0.00013999,2]
[406232942,1771645837870,-300.0,0.00013999,2]
[406232943,1771645837879,-300.0,0.00013999,2]
[406232944,1771645837889,-195.0,0.00014,2]
[406232945,1771645837898,-6425.74958956,0.00014,2]
[406232946,1771645837908,-45000.0,0.00014,2]
[406232947,1771645837917,-502.0647315,0.00014037,2]
[406232948,1771645837927,-300.0,0.00014188,2]
[406232949,1771645837936,-343.11611708,0.00014188,2]
[406232950,1771645837946,-300.0,0.00014188,2]
[406232951,1771645837955,-300.0,0.00014188,2]
[406232952,1771645837964,-251.57804149,0.00014188,2]
[406232953,1771645837974,-197.49606111,0.00014445,2]
[406232954,1771645837983,-5000.0,0.00014495,2]
[406232955,1771645837992,-160.0,0.00014777,2]
[406232956,1771645838002,-2385.82,0.00014952,2]
[406232957,1771645838012,-10276.55922307,0.0001499,2]
[406232958,1771645838022,-17871.92,0.00015,2]
[406232959,1771645838032,-420.0,0.00015337,2]
[406232960,1771645838041,-420.0,0.00015337,2]
[406232961,1771645838051,-420.0,0.00015337,2]
[406232962,1771645838060,-195.0,0.00015399,2]
[406232963,1771645838073,-600.0,0.00015399,2]
[406232964,1771645838083,-300.0,0.00015399,2]
[406232965,1771645838092,-195.0,0.00015399,2]
[406232966,1771645838102,-600.0,0.00015399,2]
[406232967,1771645838121,-300.0,0.00015399,2]
[406232968,1771645838136,-300.0,0.00015399,2]
[406232969,1771645838147,-150.04229698,0.00015399,2]
[406232970,1771645838156,-5000.0,0.00015399,2]
[406232971,1771645838166,-500.0,0.00015399,2]
[406232972,1771645838175,-300.06077373,0.00015399,2]
[406232973,1771645838184,-1680.0,0.00015399,2]
[406232975,1771645838194,-5000.0,0.000154,2]
[406232977,1771645838203,-300.0,0.00015797,2]
[406232978,1771645838212,-41631.97492146,0.00015798,2]
[406232980,1771645838221,-2757.14138272,0.00015798,2]
[406232982,1771645838231,-212.22497024,0.00015798,2]
[406232985,1771645838241,-1422.04556704,0.00015798,2]
[406232987,1771645838251,-33596.38891269,0.00015799,2]
[406232989,1771645838260,-160.0,0.000158,2]
[406232991,1771645838270,-416.77,0.00015885,2]
[406232993,1771645838279,-873.04835075,0.00015888,2]
[406232995,1771645838289,-873.04835075,0.00015888,2]
[406232997,1771645838298,-628.48505003,0.00015897,2]
[406232998,1771645838307,-160.47207745,0.00015897,2]
[406233000,1771645838317,-441.58580343,0.00015897,2]
[406233003,1771645838327,-500.0,0.00015897,2]
[406233005,1771645838336,-515.66152954,0.00015897,2]
[406233007,1771645838345,-500.0,0.00015897,2]
[406233009,1771645838354,-361.37968334,0.00015897,2]
[406233011,1771645838364,-500.0,0.00015897,2]
[406233013,1771645838374,-500.0,0.00015897,2]
[406233015,1771645838384,-200.94601632,0.00015897,2]
[406233017,1771645838395,-500.0,0.00015897,2]
[406233019,1771645838405,-500.0,0.00015897,2]
[406233021,1771645838414,-500.0,0.00015897,2]
[406233023,1771645838423,-500.0,0.00015897,2]
[406233025,1771645838432,-500.0,0.00015897,2]
[406233027,1771645838441,-500.0,0.00015897,2]
[406233029,1771645838450,-500.0,0.00015897,2]
[406233031,1771645838459,-500.0,0.00015897,2]
[406233033,1771645838469,-500.0,0.00015897,2]
[406233035,1771645838478,-500.0,0.00015897,2]
[406233037,1771645838491,-500.0,0.00015897,2]
[406233039,1771645838500,-500.0,0.00015897,2]
[406233041,1771645838510,-500.0,0.00015897,2]
[406233043,1771645838519,-500.0,0.00015897,2]
[406233045,1771645838528,-500.0,0.00015897,2]
[406233047,1771645838537,-500.0,0.00015897,2]
[406233049,1771645838547,-500.0,0.00015897,2]
[406233051,1771645838556,-500.0,0.00015897,2]
[406233053,1771645838566,-500.0,0.00015897,2]
[406233056,1771645838575,-500.0,0.00015897,2]
[406233057,1771645838584,-500.0,0.00015897,2]
[406233059,1771645838595,-500.0,0.00015897,2]
[406233061,1771645838604,-500.0,0.00015897,2]
[406233063,1771645838613,-500.0,0.00015897,2]
[406233065,1771645838623,-500.0,0.00015897,2]
[406233067,1771645838632,-500.0,0.00015897,2]
[406233069,1771645838642,-500.0,0.00015897,2]
[406233071,1771645838651,-500.0,0.00015897,2]
[406233073,1771645838661,-500.0,0.00015897,2]
[406233075,1771645838671,-500.0,0.00015897,2]
[406233077,1771645838680,-500.0,0.00015897,2]
[406233080,1771645838689,-500.0,0.00015897,2]
[406233081,1771645838699,-500.0,0.00015897,2]
[406233083,1771645838708,-500.0,0.00015897,2]
[406233086,1771645838718,-500.0,0.00015897,2]
[406233087,1771645838727,-500.0,0.00015897,2]
[406233089,1771645838737,-500.0,0.00015897,2]
[406233091,1771645838746,-500.0,0.00015897,2]
[406233094,1771645838756,-500.0,0.00015897,2]
[406233096,1771645838765,-500.0,0.00015897,2]
[406233098,1771645838775,-500.0,0.00015897,2]
[406233100,1771645838784,-500.0,0.00015897,2]
[406233102,1771645838794,-500.0,0.00015897,2]
[406233104,1771645838803,-500.0,0.00015897,2]
[406233106,1771645838813,-500.0,0.00015897,2]
[406233108,1771645838823,-500.0,0.00015897,2]
[406233110,1771645838832,-500.0,0.00015897,2]
[406233112,1771645838841,-500.0,0.00015897,2]
[406233114,1771645838851,-500.0,0.00015897,2]
[406233116,1771645838860,-500.0,0.00015897,2]
[406233118,1771645838869,-173.51824369,0.00015897,2]
[406233120,1771645838879,-500.0,0.00015897,2]
[406233122,1771645838887,-3500000.0,0.00015898,2]
[406233124,1771645838896,-2500.0,0.00015899,2]
[406233126,1771645838907,-216.97896444,0.00015899,2]
[406233128,1771645838916,-545.40134564,0.00015899,2]
[406233130,1771645838926,-263.58,0.000159,2]
[406233132,1771645838936,-2278.557,0.00015987,2]
[406233134,1771645838945,-177.134,0.00015987,2]
[406233136,1771645838954,-200.0,0.00015989,2]
[406233138,1771645838963,-151.0,0.00015989,2]
[406233140,1771645838972,-158.28068058,0.00015989,2]
[406233142,1771645838982,-500.0,0.00015989,2]
[406233144,1771645838990,-500.0,0.00015989,2]
[406233146,1771645838999,-513.17312972,0.00015989,2]
[406233147,1771645839008,-597.51516709,0.00015989,2]
[406233149,1771645839017,-542.30573458,0.00015989,2]
[406233151,1771645839027,-151.0,0.00015989,2]
[406233153,1771645839036,-151.0,0.00015989,2]
[406233155,1771645839046,-151.0,0.00015989,2]
[406233157,1771645839055,-151.0,0.00015989,2]
[406233159,1771645839065,-151.0,0.00015989,2]
[406233161,1771645839079,-151.0,0.00015989,2]
[406233163,1771645839088,-151.0,0.00015989,2]
[406233165,1771645839097,-151.0,0.00015989,2]
[406233167,1771645839106,-151.0,0.00015989,2]
[406233169,1771645839117,-151.0,0.00015989,2]
[406233171,1771645839126,-151.0,0.00015989,2]
[406233173,1771645839135,-151.0,0.00015989,2]
[406233175,1771645839148,-151.0,0.00015989,2]
[406233177,1771645839157,-151.0,0.00015989,2]
[406233179,1771645839167,-151.0,0.00015989,2]
[406233181,1771645839177,-151.0,0.00015989,2]
[406233183,1771645839187,-151.0,0.00015989,2]
[406233185,1771645839197,-151.0,0.00015989,2]
[406233188,1771645839207,-151.0,0.00015989,2]
[406233190,1771645839216,-151.0,0.00015989,2]
[406233192,1771645839226,-166.66,0.0001599,2]
[406233194,1771645839235,-2615.63,0.00015998,2]
[406233196,1771645839249,-9999.99,0.00015998,2]
[406233198,1771645839263,-150.99,0.00015998,2]
[406233200,1771645839272,-1731.72,0.00015998,2]
[406233202,1771645839282,-150.99,0.00015998,2]
[406233204,1771645839291,-666.0,0.00015998,2]
[406233206,1771645839301,-500.0,0.00015998,2]
[406233208,1771645839317,-500.0,0.00015998,2]
[406233210,1771645839336,-500.0,0.00015998,2]
[406233212,1771645839346,-500.0,0.00015998,2]
[406233214,1771645839355,-500.0,0.00015998,2]
[406233216,1771645839364,-500.0,0.00015998,2]
[406233218,1771645839374,-500.0,0.00015998,2]
[406233220,1771645839383,-500.0,0.00015998,2]
[406233222,1771645839392,-500.0,0.00015998,2]
[406233224,1771645839401,-500.0,0.00015998,2]
[406233226,1771645839411,-500.0,0.00015998,2]
[406233228,1771645839420,-500.0,0.00015998,2]
[406233230,1771645839429,-500.0,0.00015998,2]
[406233232,1771645839438,-500.0,0.00015998,2]
[406233234,1771645839447,-500.0,0.00015998,2]
[406233236,1771645839457,-500.0,0.00015998,2]
[406233238,1771645839468,-577.4,0.00015998,2]
[406233240,1771645839477,-577.4,0.00015998,2]
[406233242,1771645839486,-577.4,0.00015998,2]
[406233244,1771645839495,-577.4,0.00015998,2]
[406233246,1771645839505,-577.4,0.00015998,2]
[406233265,1771645839746,-577.4,0.00015998,2]
[406233268,1771645839756,-577.4,0.00015998,2]
[406233270,1771645839765,-577.4,0.00015998,2]
[406233272,1771645839774,-577.4,0.00015998,2]
[406233273,1771645839783,-577.4,0.00015998,2]
[406233275,1771645839792,-577.4,0.00015998,2]
[406233277,1771645839801,-324.13,0.00015998,2]
[406233279,1771645839810,-577.4,0.00015998,2]
[406233281,1771645839819,-577.4,0.00015998,2]
[406233284,1771645839829,-577.4,0.00015998,2]
[406233285,1771645839838,-577.4,0.00015998,2]
[406233287,1771645839847,-577.4,0.00015998,2]
[406233290,1771645839856,-500.0,0.00015998,2]
[406233292,1771645839865,-500.0,0.00015998,2]
[406233294,1771645839874,-500.0,0.00015998,2]
[406233296,1771645839883,-500.0,0.00015998,2]
[406233299,1771645839893,-568.06839045,0.00015998,2]
[406233301,1771645839902,-500.0,0.00015998,2]
[406233302,1771645839911,-286305.7836,0.00015999,2]
[406233304,1771645839920,-372.6257,0.00015999,2]
[406233306,1771645839930,-32860.742,0.00015999,2]
[406233308,1771645839939,-3045.8235,0.00015999,2]
[406233311,1771645839948,-6716.3887,0.00015999,2]
[406233313,1771645839959,-522.0,0.00016,2]
[406233315,1771645839968,-518.0,0.00016,2]
[406233317,1771645839977,-41631.97492146,0.00016032,2]
[406233319,1771645839987,-33596.38891261,0.00016032,2]
[406233321,1771645839996,-80731.0,0.00016082,2]
[406233323,1771645840004,-226.2421007,0.00016098,2]
[406233325,1771645840014,-151.16721438,0.00016098,2]
[406233327,1771645840023,-889.65538363,0.00016098,2]
[406233329,1771645840032,-1000.0,0.00016099,2]
[406233331,1771645840041,-9999.99,0.00016116,2]
[406233333,1771645840050,-1895.68,0.00016162,2]
[406233335,1771645840059,-41631.97492146,0.00016265,2]
[406233337,1771645840071,-33596.38891261,0.00016266,2]
[406233339,1771645840081,-324.13,0.00016272,2]
[406233341,1771645840090,-500.0,0.00016343,2]
[406233343,1771645840099,-577.4,0.00016343,2]
[406233345,1771645840107,-41631.97492146,0.00016499,2]
[406233347,1771645840119,-166.66,0.00016518,2]
[406233349,1771645840127,-200.0,0.00016537,2]
[406233351,1771645840136,-324.13,0.00016546,2]
[406233353,1771645840146,-300.0,0.00016565,2]
[406233355,1771645840155,-18458.68851381,0.00016628,2]
[406233357,1771645840164,-222.20283765,0.00016703,2]
[406233359,1771645840173,-174.61919141,0.00016703,2]
[406233361,1771645840182,-250.0,0.00016703,2]
[406233363,1771645840191,-254.8861323,0.00016703,2]
[406233365,1771645840199,-693.3919763,0.00016703,2]
[406233367,1771645840208,-500.0,0.00016703,2]
[406233369,1771645840217,-500.0,0.00016703,2]
[406233371,1771645840226,-500.0,0.00016703,2]
[406233373,1771645840235,-500.0,0.00016703,2]
[406233375,1771645840244,-500.0,0.00016703,2]
[406233377,1771645840253,-500.0,0.00016703,2]
[406233379,1771645840262,-500.0,0.00016703,2]
[406233381,1771645840271,-500.0,0.00016703,2]
[406233383,1771645840282,-500.0,0.00016703,2]
[406233385,1771645840291,-500.0,0.00016703,2]
[406233387,1771645840300,-500.0,0.00016703,2]
[406233389,1771645840309,-366.28348294,0.00016703,2]
[406233391,1771645840318,-24120.71,0.00016707,2]
[406233393,1771645840327,-41631.97492146,0.00016732,2]
[406233395,1771645840336,-719.04747942,0.00016758,2]
[406233397,1771645840345,-500.0,0.00016787,2]
[406233399,1771645840355,-577.4,0.00016787,2]
[406233401,1771645840364,-587.0,0.00016802,2]
[406233403,1771645840373,-587.0,0.00016802,2]
[406233405,1771645840382,-180.0,0.00016802,2]
[406233406,1771645840392,-745.65223616,0.00016813,2]
[406233409,1771645840403,-324.13,0.0001682,2]
[406233410,1771645840412,-773.2413689,0.00016868,2]
[406233412,1771645840422,-545.40134563,0.000169,2]
[406233415,1771645840431,-510.0,0.00016919,2]
[406233416,1771645840440,-6263.04,0.00016922,2]
[406233418,1771645840449,-801.85129955,0.00016923,2]
[406233421,1771645840458,-1895.68,0.00016932,2]
[406233423,1771645840470,-2351.0,0.00016939,2]
[406233425,1771645840479,-41631.97492146,0.00016966,2]
[406233427,1771645840488,-831.51979763,0.00016978,2]
[406233429,1771645840497,-862.28603014,0.00017033,2]
[406233431,1771645840506,-166.66,0.00017045,2]
[406233433,1771645840515,-200.0,0.00017085,2]
[406233435,1771645840524,-894.19061326,0.00017088,2]
[406233437,1771645840533,-324.17811006,0.00017094,2]
[406233439,1771645840543,-1000.0,0.000171,2]
[406233441,1771645840552,-1000.0,0.000171,2]
[406233443,1771645840561,-1000.0,0.000171,2]
[406233445,1771645840570,-927.27566595,0.00017143,2]
[406233447,1771645840579,-961.58486559,0.00017198,2]
[406233449,1771645840588,-41631.97492146,0.00017199,2]
[406233451,1771645840597,-181.08010149,0.00017251,2]
[406233453,1771645840606,-997.16350561,0.00017253,2]
[406233455,1771645840615,-465.11808565,0.00017396,2]
[406233457,1771645840625,-41631.97492146,0.00017433,2]
[406233459,1771645840634,-500.0,0.00017455,2]
[406233461,1771645840643,-577.4,0.00017455,2]
[406233463,1771645840652,-195.0,0.00017487,2]
[406233465,1771645840661,-743.03964673,0.00017487,2]
[406233467,1771645840670,-1102.0,0.00017523,2]
[406233469,1771645840679,-1102.0,0.00017544,2]
[406233471,1771645840689,-166.66,0.00017573,2]
[406233473,1771645840699,-169.92,0.00017583,2]
[406233475,1771645840708,-1102.0,0.00017584,2]
[406233477,1771645840717,-1102.0,0.00017597,2]
[406233479,1771645840729,-265.41349278,0.00017622,2]
[406233481,1771645840738,-1102.0,0.0001766,2]
[406233483,1771645840747,-41631.97492146,0.00017666,2]
[406233485,1771645840756,-1895.68,0.00017702,2]
[406233487,1771645840765,-1102.0,0.0001774,2]
[406233489,1771645840775,-1102.0,0.00017758,2]
[406233491,1771645840783,-1102.0,0.00017769,2]
[406233493,1771645840793,-822.17856688,0.00017808,2]
[406233495,1771645840802,-822.17856688,0.00017808,2]